fUST/lending_fUST_20260505
["ID","MTS","AMOUNT","RATE_DAILY","PERIOD"]
[421585477,1777927841000,-151.0,0.00014998,2]
[421585487,1777927841000,-621.78829552,0.00015038,2]
[421585486,1777927841000,-151.0,0.00015,2]
[421585471,1777927841000,-173.762015,0.00014982,7]
[421585475,1777927841000,-767.42,0.00014997,2]
[421585470,1777927841000,-229.484367,0.00014982,2]
[421585468,1777927841000,-160.0,0.00014982,2]
[421585467,1777927841000,-200.638144,0.00014982,7]
[421585465,1777927841000,-160.0,0.00014982,7]
[421585473,1777927841000,-167.389986,0.00014993,7]
[421585474,1777927841000,-215.776153,0.00014994,7]
[421585472,1777927841000,-599.60298507,0.00014983,2]
[421585466,1777927841000,-180.319072,0.00014982,7]
[421585483,1777927841000,-151.0,0.00015,2]
[421585469,1777927841000,-194.742183,0.00014982,2]
[421585484,1777927841000,-151.0,0.00015,2]
[421585503,1777927841000,-767.42,0.00015287,2]
[421585489,1777927841000,-644.79446246,0.00015093,2]
[421585488,1777927841000,-218.548911,0.00015068,2]
[421585510,1777927841000,-864.0,0.00015345,2]
[421585511,1777927841000,-784.50474116,0.0001536,2]
[421585508,1777927841000,-10036.22632278,0.000153,2]
[421585506,1777927841000,-9736.380459,0.00015288,2]
[421585507,1777927841000,-580.69,0.00015299,2]
[421585499,1777927841000,-869.97,0.00015212,2]
[421585500,1777927841000,-1245.33837335,0.00015213,3]
[421585501,1777927841000,-800.0,0.00015242,2]
[421585502,1777927841000,-719.04747942,0.00015258,2]
[421585505,1777927841000,-4948.190229,0.00015288,2]
[421585509,1777927841000,-745.65223616,0.00015313,2]
[421585498,1777927841000,-693.3919763,0.00015203,2]
[421585497,1777927841000,-151.0,0.000152,2]
[421585492,1777927841000,-668.65185757,0.00015148,2]
[421585495,1777927841000,-151.0,0.000152,2]
[421585490,1777927841000,-538.08726745,0.00015134,2]
[421585493,1777927841000,-767.42,0.00015199,2]
[421585496,1777927841000,-151.0,0.000152,2]
[421585494,1777927841000,-10036.22632278,0.000152,2]
[421585491,1777927841000,-4861.79290901,0.00015146,2]
[421585504,1777927841000,-160.0,0.00015288,2]
[421585522,1777927847000,-3634.91311388,0.00013463,2]
[421585523,1777927847000,-9665.4008967,0.00013599,2]
[421585521,1777927847000,-1365.08688612,0.00013463,2]
[421585524,1777927950000,200.0,0.00017433,120]
[421585525,1777928070000,200.0,0.00020089,120]
[421585526,1777928119000,1342.0,0.00020431,120]
[421585527,1777928135000,942.0,0.00020794,120]
[421585548,1777928790000,200.0,0.00020215,120]
[421585551,1777929030000,200.0,0.00020671,120]
[421585565,1777929031000,-300.0,0.00012299,2]
[421585560,1777929031000,-4734.11467174,0.0001108,2]
[421585561,1777929031000,-577.0,0.00011192,2]
[421585563,1777929031000,-329.57055496,0.00011406,2]
[421585566,1777929031000,-737.0,0.00012299,2]
[421585567,1777929031000,-300.0,0.000123,2]
[421585568,1777929031000,-300.0,0.000123,2]
[421585569,1777929031000,-300.0,0.000123,2]
[421585584,1777929031000,-300.0,0.000123,2]
[421585570,1777929031000,-300.0,0.000123,2]
[421585572,1777929031000,-300.0,0.000123,2]
[421585575,1777929031000,-300.0,0.000123,2]
[421585576,1777929031000,-300.0,0.000123,2]
[421585578,1777929031000,-300.0,0.000123,2]
[421585580,1777929031000,-300.0,0.000123,2]
[421585582,1777929031000,-300.0,0.000123,2]
[421585586,1777929031000,-300.0,0.000123,2]
[421585573,1777929031000,-300.0,0.000123,2]
[421585606,1777929032000,-808.13492193,0.00013398,2]
[421585602,1777929032000,-808.13492193,0.00013398,2]
[421585600,1777929032000,-808.13492193,0.00013398,2]
[421585596,1777929032000,-808.13492193,0.00013398,2]
[421585592,1777929032000,-808.13492193,0.00013398,2]
[421585590,1777929032000,-300.0,0.000123,2]
[421585588,1777929032000,-300.0,0.000123,2]
[421585594,1777929032000,-808.13492193,0.00013398,2]
[421585604,1777929032000,-808.13492193,0.00013398,2]
[421585598,1777929032000,-181.07642202,0.00013398,2]
[421585608,1777929032000,-808.13492193,0.00013398,2]
[421585615,1777929032000,-500.0,0.00013398,2]
[421585610,1777929032000,-808.13492193,0.00013398,2]
[421585623,1777929032000,-808.13492193,0.00013398,2]
[421585611,1777929032000,-808.13492193,0.00013398,2]
[421585613,1777929032000,-808.13492193,0.00013398,2]
[421585621,1777929032000,-808.13492193,0.00013398,2]
[421585619,1777929032000,-250.43535888,0.00013398,2]
[421585625,1777929032000,-808.13492193,0.00013398,2]
[421585627,1777929032000,-808.13492193,0.00013398,2]
[421585631,1777929032000,-837.52164636,0.00013398,2]
[421585633,1777929032000,-553.36383615,0.00013398,2]
[421585629,1777929032000,-808.13492193,0.00013398,2]
[421585617,1777929032000,-331.71214368,0.00013398,2]
[421585779,1777929038000,-837.52164636,0.00013398,2]
[421585778,1777929038000,-284.15781021,0.00013398,2]
[421585781,1777929038000,-837.52164636,0.00013398,2]
[421585782,1777929038000,-76.5174445,0.00013398,2]
[421585780,1777929038000,-837.52164636,0.00013398,2]
[421585808,1777929043000,-1037.38318,0.000133,2]
[421585809,1777929043000,-920.32817028,0.000133,2]
[421585811,1777929046000,-671.2108709,0.000133,2]
[421585812,1777929210000,200.0,0.00020318,120]
[421585817,1777929390000,200.0,0.00020121,120]
[421585818,1777929415000,300000.0,0.00020821,120]
[421585820,1777929690000,200.0,0.00020188,120]
[421585821,1777929808000,250.0,0.0002,120]
[421585822,1777929837000,255.0,0.0002,120]
[421585922,1777930230000,200.0,0.00020177,120]
[421585976,1777930232000,-991.38827341,0.00013099,2]
[421585967,1777930232000,-991.38827341,0.00013099,2]
[421585964,1777930232000,-1753.27331065,0.00013,2]
[421585966,1777930232000,-3618.12303523,0.00013099,2]
[421585962,1777930232000,-1486.30404222,0.00013,2]
[421585963,1777930232000,-1658.0246122,0.00013,2]
[421585958,1777930232000,-203.0235241,0.00012802,2]
[421585950,1777930232000,-597.0,0.00012527,2]
[421585961,1777930232000,-684.83426629,0.00013,2]
[421585957,1777930232000,-3582.9963164,0.00012802,2]
[421585959,1777930232000,-241.8324774,0.00012802,2]
[421585954,1777930232000,-3276.3538278,0.00012802,2]
[421585965,1777930232000,-162.479,0.00013033,2]
[421585952,1777930232000,-327.41106984,0.00012627,2]
[421585956,1777930232000,-286.1578509,0.00012802,2]
[421585949,1777930232000,-5478.99770343,0.00012527,2]
[421585960,1777930232000,-1025.2478612,0.00012802,2]
[421585969,1777930232000,-991.38827341,0.00013099,2]
[421585968,1777930232000,-386.30218422,0.00013099,2]
[421585971,1777930232000,-991.38827341,0.00013099,2]
[421585975,1777930232000,-991.38827341,0.00013099,2]
[421585988,1777930232000,-1027.43875607,0.00013099,2]
[421585989,1777930232000,-1027.43875607,0.00013099,2]
[421585990,1777930232000,-942.77586372,0.00013099,2]
[421585984,1777930232000,-536.32970391,0.00013099,2]
[421585987,1777930232000,-991.38827341,0.00013099,2]
[421585986,1777930232000,-991.38827341,0.00013099,2]
[421585983,1777930232000,-455.0585695,0.00013099,2]
[421585980,1777930232000,-991.38827341,0.00013099,2]
[421585985,1777930232000,-991.38827341,0.00013099,2]
[421585982,1777930232000,-991.38827341,0.00013099,2]
[421585979,1777930232000,-991.38827341,0.00013099,2]
[421585977,1777930232000,-991.38827341,0.00013099,2]
[421585978,1777930232000,-991.38827341,0.00013099,2]
[421585974,1777930232000,-991.38827341,0.00013099,2]
[421585972,1777930232000,-991.38827341,0.00013099,2]
[421585973,1777930232000,-991.38827341,0.00013099,2]
[421585970,1777930232000,-991.38827341,0.00013099,2]
[421585981,1777930232000,-991.38827341,0.00013099,2]
[421586000,1777930238000,-619.55712965,0.00013099,2]
[421585999,1777930238000,-84.66289235,0.00013099,2]
[421586002,1777930238000,-1027.43875607,0.00013099,2]
[421586005,1777930238000,-1027.43875607,0.00013099,2]
[421586003,1777930238000,-1027.43875607,0.00013099,2]
[421586007,1777930238000,-1027.43875607,0.00013099,2]
[421586004,1777930238000,-1027.43875607,0.00013099,2]
[421586009,1777930238000,-16332.7814089,0.000131,2]
[421586006,1777930238000,-1027.43875607,0.00013099,2]
[421586010,1777930238000,-2131.64345873,0.000131,2]
[421586001,1777930238000,-407.88162642,0.00013099,2]
[421586008,1777930238000,-1187.26256253,0.00013099,2]
[421586040,1777930243000,-25081.73827189,0.000131,2]
[421586042,1777930243000,-500.0,0.000131,2]
[421586038,1777930243000,-330.6613775,0.0001,2]
[421586031,1777930243000,-287.41003066,0.0001,2]
[421586067,1777930246000,-10833.3389859,0.000131,2]
[421586068,1777930246000,-829.19857825,0.000131,2]
[421586069,1777930256000,1253.28186387,0.0002,120]
[421586071,1777930271000,658.32308684,0.0002,120]
[421586072,1777930273000,6682.4940434,0.0002,120]
[421586090,1777930410000,200.0,0.0001976,120]
[421586092,1777930590000,200.0,0.000199,120]
[421586093,1777930681000,2659.06679994,0.00020822,120]
[421586094,1777930830000,200.0,0.00020672,120]
[421586095,1777930890000,200.0,0.00019778,120]
[421586097,1777930950000,200.0,0.00019756,120]
[421586098,1777931010000,200.0,0.00018842,120]
[421586099,1777931058000,2988.54705565,0.00020822,120]
[421586100,1777931130000,200.0,0.00020065,120]
[421586102,1777931190000,200.0,0.0001979,120]
[421586103,1777931356000,2595.42,0.00020821,120]
[421586148,1777931440000,-300.0,0.00010199,2]
[421586150,1777931440000,-300.0,0.00010199,2]
[421586149,1777931440000,-300.0,0.00010199,2]
[421586147,1777931440000,-300.0,0.00010199,2]
[421586145,1777931440000,-300.0,0.00010199,2]
[421586144,1777931440000,-300.0,0.00010199,2]
[421586146,1777931440000,-300.0,0.00010199,2]
[421586139,1777931440000,-326.30813448,0.00010012,2]
[421586142,1777931440000,-300.0,0.00010199,2]
[421586143,1777931440000,-300.0,0.00010199,2]
[421586140,1777931440000,-300.0,0.00010199,2]
[421586157,1777931440000,-242.88910312,0.00012699,2]
[421586138,1777931440000,-2383.09424215,0.0001,2]
[421586136,1777931440000,-292.16051837,0.0001,2]
[421586137,1777931440000,-5497.72452023,0.0001,2]
[421586141,1777931440000,-300.0,0.00010199,2]
[421586152,1777931440000,-300.0,0.00010199,2]
[421586151,1777931440000,-300.0,0.00010199,2]
[421586156,1777931440000,-385.04359868,0.00012012,2]
[421586171,1777931440000,-450.74420884,0.00012743,2]
[421586169,1777931440000,-500.0,0.00012743,2]
[421586158,1777931440000,-3256.31073168,0.00012699,2]
[421586168,1777931440000,-500.0,0.00012743,2]
[421586165,1777931440000,-500.0,0.00012743,2]
[421586163,1777931440000,-500.0,0.00012743,2]
[421586166,1777931440000,-45.93064559,0.00012743,2]
[421586167,1777931440000,-454.06935441,0.00012743,2]
[421586170,1777931440000,-500.0,0.00012743,2]
[421586162,1777931440000,-162.87648604,0.00012743,2]
[421586161,1777931440000,-524.22268346,0.00012743,2]
[421586159,1777931440000,-152.41076455,0.00012743,2]
[421586160,1777931440000,-500.0,0.00012743,2]
[421586155,1777931440000,-250.0,0.0001177,2]
[421586154,1777931440000,-300.0,0.00010199,2]
[421586164,1777931440000,-500.0,0.00012743,2]
[421586153,1777931440000,-300.0,0.00010199,2]
[421586183,1777931441000,-688.40800022,0.00012798,2]
[421586182,1777931441000,-688.40800022,0.00012798,2]
[421586181,1777931441000,-688.40800022,0.00012798,2]
[421586177,1777931441000,-500.0,0.00012743,2]
[421586179,1777931441000,-270.41152895,0.00012798,2]
[421586173,1777931441000,-500.0,0.00012743,2]
[421586175,1777931441000,-268.80161632,0.00012743,2]
[421586176,1777931441000,-500.0,0.00012743,2]
[421586174,1777931441000,-231.19838368,0.00012743,2]
[421586172,1777931441000,-49.25579116,0.00012743,2]
[421586180,1777931441000,-688.40800022,0.00012798,2]
[421586185,1777931441000,-688.40800022,0.00012798,2]
[421586178,1777931441000,-572.28204926,0.00012743,2]
[421586184,1777931441000,-688.40800022,0.00012798,2]
[421586199,1777931441000,-688.40800022,0.00012798,2]
[421586187,1777931441000,-688.40800022,0.00012798,2]
[421586186,1777931441000,-688.40800022,0.00012798,2]
[421586201,1777931441000,-293.6621428,0.00012798,2]
[421586200,1777931441000,-286.38122553,0.00012798,2]
[421586196,1777931441000,-621.06724334,0.00012798,2]
[421586197,1777931441000,-688.40800022,0.00012798,2]
[421586194,1777931441000,-688.40800022,0.00012798,2]
[421586198,1777931441000,-500.0,0.00012798,2]
[421586192,1777931441000,-688.40800022,0.00012798,2]
[421586193,1777931441000,-688.40800022,0.00012798,2]
[421586195,1777931441000,-500.0,0.00012798,2]
[421586191,1777931441000,-688.40800022,0.00012798,2]
[421586189,1777931441000,-688.40800022,0.00012798,2]
[421586188,1777931441000,-688.40800022,0.00012798,2]
[421586190,1777931441000,-688.40800022,0.00012798,2]
[421586258,1777931443000,-429.16625744,0.00012798,2]
[421586260,1777931443000,-722.82840024,0.00012798,2]
[421586271,1777931443000,-240.26078414,0.00012798,2]
[421586262,1777931443000,-722.82840024,0.00012798,2]
[421586266,1777931443000,-722.82840024,0.00012798,2]
[421586268,1777931443000,-482.5676161,0.00012798,2]
[421586275,1777931443000,-394.30749581,0.00012798,2]
[421586264,1777931443000,-722.82840024,0.00012798,2]
[421586279,1777931443000,-722.82840024,0.00012798,2]
[421586277,1777931443000,-328.52090443,0.00012798,2]
[421586284,1777931443000,-722.82840024,0.00012798,2]
[421586288,1777931443000,-4788.57655827,0.00012799,2]
[421586273,1777931443000,-722.82840024,0.00012798,2]
[421586282,1777931443000,-722.82840024,0.00012798,2]
[421586286,1777931443000,-722.82840024,0.00012798,2]
[421586293,1777931443000,-3339.73672122,0.00012799,2]
[421586371,1777931446000,-601.0,0.00012798,2]
[421586372,1777931446000,-1427.65,0.00012799,2]
[421586375,1777931708000,174.0,0.00020748,120]
[421586376,1777931745000,567.0,0.00018732,120]
[421586377,1777931747000,567.0,0.00019668,120]
[421586378,1777931748000,567.0,0.00020652,120]
[421586399,1777932012000,326.0,0.00019769,120]
[421586400,1777932013000,326.0,0.00020758,120]
[421586401,1777932035000,283.0,0.00019085,120]
[421586402,1777932036000,283.0,0.00020039,120]
[421586413,1777932311000,196.0,0.00020047,120]
[421586414,1777932332000,170.0,0.00019032,120]
[421586415,1777932334000,170.0,0.00019984,120]
[421586418,1777932616000,168.0,0.0002003,120]
[421586583,1777932633000,-16546.72109521,0.000124,2]
[421586517,1777932633000,-500.0,0.00012399,2]
[421586515,1777932633000,-500.0,0.00012399,2]
[421586513,1777932633000,-500.0,0.00012399,2]
[421586511,1777932633000,-500.0,0.00012399,2]
[421586506,1777932633000,-380.37031607,0.00012292,2]
[421586507,1777932633000,-194.31128252,0.000123,2]
[421586502,1777932633000,-300.0,0.00011721,2]
[421586504,1777932633000,-300.0,0.00011721,2]
[421586509,1777932633000,-500.0,0.00012399,2]
[421586495,1777932633000,-300.0,0.00011721,2]
[421586498,1777932633000,-300.0,0.00011721,2]
[421586500,1777932633000,-300.0,0.00011721,2]
[421586497,1777932633000,-300.0,0.00011721,2]
[421586493,1777932633000,-300.0,0.00011721,2]
[421586489,1777932633000,-300.0,0.00011721,2]
[421586491,1777932633000,-300.0,0.00011721,2]
[421586487,1777932633000,-300.0,0.00011721,2]
[421586476,1777932633000,-564.0,0.00010297,2]
[421586469,1777932633000,-5000.0,0.00010193,2]
[421586482,1777932633000,-300.0,0.00011721,2]
[421586485,1777932633000,-300.0,0.00011721,2]
[421586472,1777932633000,-322.34772548,0.00010292,2]
[421586474,1777932633000,-300.0,0.00010296,2]
[421586484,1777932633000,-300.0,0.00011721,2]
[421586480,1777932633000,-300.0,0.00011721,2]
[421586478,1777932633000,-300.0,0.00011721,2]
[421586468,1777932633000,-4334.95,0.00010091,2]
[421586461,1777932633000,-665.05,0.00010091,2]
[421586528,1777932633000,-500.0,0.00012399,2]
[421586519,1777932633000,-500.0,0.00012399,2]
[421586471,1777932633000,-286.63,0.00010289,6]
[421586533,1777932633000,-500.0,0.00012399,2]
[421586530,1777932633000,-500.0,0.00012399,2]
[421586585,1777932633000,-3444.55648565,0.000124,2]
[421586577,1777932633000,-564.49874177,0.00012399,2]
[421586579,1777932633000,-6708.68843808,0.000124,2]
[421586580,1777932633000,-16135.01635288,0.000124,2]
[421586576,1777932633000,-500.0,0.00012399,2]
[421586573,1777932633000,-500.0,0.00012399,2]
[421586572,1777932633000,-500.0,0.00012399,2]
[421586574,1777932633000,-500.0,0.00012399,2]
[421586575,1777932633000,-500.0,0.00012399,2]
[421586570,1777932633000,-500.0,0.00012399,2]
[421586566,1777932633000,-500.0,0.00012399,2]
[421586568,1777932633000,-500.0,0.00012399,2]
[421586564,1777932633000,-500.0,0.00012399,2]
[421586581,1777932633000,-12938.01308239,0.000124,2]
[421586560,1777932633000,-500.0,0.00012399,2]
[421586534,1777932633000,-500.0,0.00012399,2]
[421586562,1777932633000,-500.0,0.00012399,2]
[421586548,1777932633000,-500.0,0.00012399,2]
[421586545,1777932633000,-500.0,0.00012399,2]
[421586536,1777932633000,-500.0,0.00012399,2]
[421586539,1777932633000,-590.88041762,0.00012399,2]
[421586543,1777932633000,-500.0,0.00012399,2]
[421586540,1777932633000,-500.0,0.00012399,2]
[421586550,1777932633000,-500.0,0.00012399,2]
[421586552,1777932633000,-500.0,0.00012399,2]
[421586554,1777932633000,-500.0,0.00012399,2]
[421586547,1777932633000,-500.0,0.00012399,2]
[421586556,1777932633000,-500.0,0.00012399,2]
[421586558,1777932633000,-500.0,0.00012399,2]
[421586636,1777932635000,170.0,0.00019018,120]
[421586637,1777932636000,170.0,0.00019969,120]
[421586675,1777932641000,-500.0,0.00012743,2]
[421586672,1777932641000,-500.0,0.00012743,2]
[421586673,1777932641000,-500.0,0.00012743,2]
[421586671,1777932641000,-151.0,0.00012667,2]
[421586674,1777932641000,-500.0,0.00012743,2]
[421586669,1777932641000,-151.4090701,0.00012637,2]
[421586670,1777932641000,-151.0,0.00012637,2]
[421586676,1777932641000,-297.39338712,0.00012743,2]
[421586682,1777932641000,-4067.04623942,0.00013242,2]
[421586679,1777932641000,-296.84518007,0.00013,2]
[421586680,1777932641000,-178.3868825,0.00013017,2]
[421586677,1777932641000,-4067.04623949,0.000129,2]
[421586685,1777932641000,-160.0,0.0001337,2]
[421586681,1777932641000,-155.001,0.00013199,2]
[421586684,1777932641000,-160.0,0.00013332,2]
[421586668,1777932641000,-243.3004949,0.00012637,2]
[421586678,1777932641000,-600.0,0.00012952,2]
[421586663,1777932641000,-151.0,0.000126,2]
[421586649,1777932641000,-5000.0,0.00012276,2]
[421586667,1777932641000,-151.0,0.00012637,2]
[421586650,1777932641000,-11091.95823194,0.000124,2]
[421586651,1777932641000,-238.76188759,0.000124,2]
[421586652,1777932641000,-412.83499008,0.000124,2]
[421586653,1777932641000,-381.55363015,0.000124,2]
[421586655,1777932641000,-5455.7315926,0.00012401,2]
[421586687,1777932641000,-400.6868087,0.00013489,2]
[421586654,1777932641000,-433.78381737,0.000124,2]
[421586666,1777932641000,-151.0,0.000126,2]
[421586656,1777932641000,-181.374358,0.00012401,2]
[421586660,1777932641000,-162.479,0.00012543,2]
[421586657,1777932641000,-1256.0412769,0.00012401,2]
[421586659,1777932641000,-160.0,0.00012542,2]
[421586662,1777932641000,-151.0,0.000126,2]
[421586661,1777932641000,-206.99369548,0.0001259,2]
[421586664,1777932641000,-151.0,0.000126,2]
[421586665,1777932641000,-151.0,0.000126,2]
[421586658,1777932641000,-9931.1972274,0.00012401,2]
[421586688,1777932641000,-151.9257883,0.00013489,2]
[421586722,1777932641000,-836.66061469,0.00013697,2]
[421586690,1777932641000,-151.0,0.00013525,2]
[421586706,1777932641000,-778.2889439,0.00013697,2]
[421586712,1777932641000,-778.2889439,0.00013697,2]
[421586709,1777932641000,-778.2889439,0.00013697,2]
[421586715,1777932641000,-778.2889439,0.00013697,2]
[421586716,1777932641000,-778.2889439,0.00013697,2]
[421586714,1777932641000,-778.2889439,0.00013697,2]
[421586717,1777932641000,-836.66061469,0.00013697,2]
[421586713,1777932641000,-778.2889439,0.00013697,2]
[421586719,1777932641000,-836.66061469,0.00013697,2]
[421586720,1777932641000,-836.66061469,0.00013697,2]
[421586721,1777932641000,-836.66061469,0.00013697,2]
[421586724,1777932641000,-836.66061469,0.00013697,2]
[421586725,1777932641000,-836.66061469,0.00013697,2]
[421586723,1777932641000,-836.66061469,0.00013697,2]
[421586726,1777932641000,-943.26737044,0.00013697,2]
[421586686,1777932641000,-456.2076372,0.00013459,2]
[421586718,1777932641000,-836.66061469,0.00013697,2]
[421586710,1777932641000,-778.2889439,0.00013697,2]
[421586727,1777932641000,-943.26737044,0.00013697,2]
[421586708,1777932641000,-778.2889439,0.00013697,2]
[421586689,1777932641000,-325.662322,0.00013489,2]
[421586691,1777932641000,-151.0,0.00013525,2]
[421586693,1777932641000,-155.5305046,0.00013527,2]
[421586692,1777932641000,-324.3708691,0.00013525,2]
[421586696,1777932641000,-325.688714,0.00013527,2]
[421586698,1777932641000,-537.6845,0.00013694,2]
[421586695,1777932641000,-456.2076373,0.00013527,2]
[421586697,1777932641000,-152.2219149,0.00013527,2]
[421586694,1777932641000,-456.2418086,0.00013527,2]
[421586700,1777932641000,-151.0,0.00013694,2]
[421586699,1777932641000,-477.26543042,0.00013694,2]
[421586707,1777932641000,-778.2889439,0.00013697,2]
[421586705,1777932641000,-778.2889439,0.00013697,2]
[421586702,1777932641000,-230.54542634,0.00013697,2]
[421586711,1777932641000,-778.2889439,0.00013697,2]
[421586704,1777932641000,-778.2889439,0.00013697,2]
[421586701,1777932641000,-778.2889439,0.00013697,2]
[421586703,1777932641000,-499.29022524,0.00013697,2]
[421586737,1777932642000,-168.60933823,0.00013698,2]
[421586729,1777932642000,-500.0,0.00013698,2]
[421586731,1777932642000,-500.0,0.00013698,2]
[421586730,1777932642000,-500.0,0.00013698,2]
[421586736,1777932642000,-500.0,0.00013698,2]
[421586734,1777932642000,-500.0,0.00013698,2]
[421586732,1777932642000,-500.0,0.00013698,2]
[421586728,1777932642000,-500.0,0.00013698,2]
[421586735,1777932642000,-500.0,0.00013698,2]
[421586738,1777932642000,-331.39066177,0.00013698,2]
[421586739,1777932642000,-500.0,0.00013698,2]
[421586741,1777932642000,-201.34860804,0.00013698,2]
[421586740,1777932642000,-388.52599458,0.00013698,2]
[421586742,1777932642000,-109.00548584,0.00013698,2]
[421586743,1777932642000,-390.99451416,0.00013698,2]
[421586744,1777932642000,-365.81980523,0.00013698,2]
[421586733,1777932642000,-500.0,0.00013698,2]
[421586763,1777932643000,-134.18019477,0.00013698,2]
[421586765,1777932643000,-500.0,0.00013698,2]
[421586768,1777932643000,-500.0,0.00013698,2]
[421586764,1777932643000,-500.0,0.00013698,2]
[421586767,1777932643000,-500.0,0.00013698,2]
[421586766,1777932643000,-500.0,0.00013698,2]
[421586770,1777932643000,-500.0,0.00013698,2]
[421586773,1777932643000,-500.0,0.00013698,2]
[421586772,1777932643000,-500.0,0.00013698,2]
[421586771,1777932643000,-500.0,0.00013698,2]
[421586774,1777932643000,-500.0,0.00013698,2]
[421586776,1777932643000,-1000.0,0.00013699,2]
[421586775,1777932643000,-406.92446523,0.00013698,2]
[421586777,1777932643000,-151.0,0.00013699,2]
[421586778,1777932643000,-151.0,0.00013699,2]
[421586769,1777932643000,-500.0,0.00013698,2]
[421586780,1777932644000,-151.0,0.00013699,2]
[421586783,1777932644000,-83.95638702,0.00013699,2]
[421586784,1777932644000,-151.0,0.00013699,2]
[421586779,1777932644000,-151.0,0.00013699,2]
[421586785,1777932644000,-69.04361298,0.00013699,2]
[421586781,1777932644000,-67.04361298,0.00013699,2]
[421586791,1777932646000,-81.95638702,0.00013699,2]
[421586792,1777932646000,-183.576747,0.00013699,2]
[421586793,1777932646000,-1000.0,0.00013699,2]
[421586795,1777932646000,-5260.24400868,0.000137,2]
[421586805,1777932646000,-740.0,0.00013993,2]
[421586804,1777932646000,-2214.0,0.00013993,2]
[421586796,1777932646000,-557.5788265,0.00013749,2]
[421586797,1777932646000,-578.20924308,0.00013804,2]
[421586794,1777932646000,-5804.75599132,0.000137,2]
[421586801,1777932646000,-269.494,0.00013993,2]
[421586802,1777932646000,-646.0,0.00013993,2]
[421586799,1777932646000,-621.78829552,0.00013914,2]
[421586809,1777932646000,-693.3919763,0.00014079,2]
[421586800,1777932646000,-644.79446246,0.00013969,2]
[421586803,1777932646000,-1411.0,0.00013993,2]
[421586807,1777932646000,-442.0,0.00013993,2]
[421586808,1777932646000,-668.65185757,0.00014024,2]
[421586806,1777932646000,-185.0,0.00013993,2]
[421586798,1777932646000,-599.60298507,0.00013859,2]
[421586859,1777932647000,-166.0,0.0001536,2]
[421586851,1777932647000,-151.0,0.000153,2]
[421586862,1777932647000,-154.0,0.0001536,2]
[421586848,1777932647000,-181.374358,0.00015252,2]
[421586844,1777932647000,-1000.0,0.00015174,5]
[421586846,1777932647000,-10044.23252927,0.000152,2]
[421586858,1777932647000,-154.0,0.0001536,2]
[421586852,1777932647000,-10044.23252927,0.000153,2]
[421586863,1777932647000,-154.0,0.0001536,2]
[421586868,1777932647000,-649.0,0.0001536,2]
[421586853,1777932647000,-151.0,0.000153,2]
[421586855,1777932647000,-172.0,0.0001536,2]
[421586856,1777932647000,-154.0,0.0001536,2]
[421586861,1777932647000,-166.0,0.0001536,2]
[421586857,1777932647000,-166.0,0.0001536,2]
[421586860,1777932647000,-154.0,0.0001536,2]
[421586864,1777932647000,-154.0,0.0001536,2]
[421586866,1777932647000,-180.52917151,0.0001536,2]
[421586872,1777932647000,-649.0,0.0001536,2]
[421586850,1777932647000,-1256.0412769,0.00015252,2]
[421586854,1777932647000,-154.0,0.0001536,2]
[421586843,1777932647000,-881.63562713,0.00015128,2]
[421586823,1777932647000,-259.88893163,0.000149,2]
[421586839,1777932647000,-3185.41061229,0.00015128,2]
[421586817,1777932647000,-801.85129955,0.00014299,2]
[421586811,1777932647000,-177.2,0.00014152,2]